bitfinex/quotes_SOLUSD_20250912
["timestamp","ask_amount","ask_price","bid_price","bid_amount"]
[1757681035956,0.06,238.29,238.28,79.52]
[1757681037171,0.06,238.29,238.28,82.8091902]
[1757681042966,0.06,238.33,238.3,20.31]
[1757681043178,0.06,238.33,238.3,184.11]
[1757681043478,0.06,238.33,238.3,184.8]
[1757681043663,0.06,238.33,238.3,186.47718401]
[1757681044059,0.06,238.33,238.3,186.61934558]
[1757681044880,0.06,238.33,238.3,154.21934558]
[1757681045072,0.06,238.33,238.3,186.61934558]
[1757681046590,0.06,238.33,238.3,186.59934558]
[1757681047158,0.06,238.33,238.3,186.45718401]
[1757681048987,0.06,238.33,238.32,46.09]
[1757681049180,0.06,238.33,238.32,209.87]
[1757681049396,0.06,238.33,238.32,210.56]
[1757681053097,0.06,238.33,238.32,209.87]
[1757681053484,0.06,238.33,238.32,210.56]
[1757681054184,0.06,238.33,238.32,209.87]
[1757681054796,0.18,238.37,238.36,26.0]
[1757681054997,0.18,238.37,238.36,78.31]
[1757681056783,0.28,238.39,238.36,78.31]
[1757681056979,0.1,238.39,238.36,78.31]
[1757681057196,0.18,238.38,238.36,78.31]
[1757681057782,0.18,238.37,238.36,19.93]
[1757681057982,0.18,238.37,238.36,52.31]
[1757681059692,0.18,238.37,238.36,19.93]
[1757681059902,0.18,238.37,238.36,52.31]
[1757681063989,0.24,238.38,238.36,52.31]
[1757681065820,0.18,238.37,238.36,52.31]
[1757681067011,0.06,238.38,238.36,52.31]
[1757681067206,0.24,238.38,238.36,52.31]
[1757681067392,0.06,238.38,238.36,52.31]
[1757681068007,0.24,238.38,238.36,52.31]
[1757681068213,0.06,238.38,238.36,52.31]
[1757681069410,0.06,238.38,238.37,0.66]
[1757681071514,0.06,238.38,238.37,32.36]
[1757681073825,0.06,238.38,238.37,33.02]
[1757681074002,0.06,238.38,238.37,0.66]
[1757681074203,0.06,238.38,238.37,33.02]
[1757681074421,0.06,238.38,238.37,0.66]
[1757681074810,0.06,238.38,238.37,33.02]
[1757681075924,0.06,238.38,238.37,52.95]
[1757681077020,0.06,238.38,238.37,20.59]
[1757681077406,0.06,238.38,238.37,52.95]
[1757681077704,0.06,238.38,238.37,20.59]
[1757681077927,0.06,238.38,238.37,52.95]
[1757681078319,0.06,238.42,238.41,26.0]
[1757681078525,2.86242722,238.42,238.41,78.53]
[1757681078921,0.06,238.42,238.41,78.53]
[1757681079232,0.06,238.42,238.41,91.10624348]
[1757681079432,2.86242722,238.42,238.41,91.10624348]
[1757681079819,0.06,238.42,238.41,91.10624348]
[1757681081815,0.06,238.42,238.41,222.50624348]
[1757681085741,0.1,238.49,238.46,19.45]
[1757681085942,0.1,238.49,238.47,32.34]
[1757681086122,0.1,238.49,238.47,33.0]
[1757681086433,0.1,238.49,238.48,13.23308104]
[1757681086813,0.1,238.49,238.48,0.66]
[1757681087138,0.1,238.49,238.48,33.0]
[1757681087322,0.1,238.49,238.48,52.45]
[1757681088818,0.1,238.49,238.48,65.02255412]
[1757681092932,0.1,238.49,238.48,196.42255412]
[1757681094945,0.16,238.49,238.48,196.42255412]
[1757681100524,0.16,238.49,238.48,195.76255412]
[1757681100726,0.06,238.52,238.51,45.29]
[1757681100921,0.06,238.52,238.51,77.51]
[1757681101137,0.06,238.52,238.51,78.18]
[1757681101351,0.06,238.52,238.51,47.53612981]
[1757681101529,0.06,238.52,238.51,79.18612981]
[1757681102330,0.06,238.52,238.51,79.85612981]
[1757681102536,0.06,238.52,238.51,79.18612981]
[1757681103457,0.06,238.52,238.51,53.85612981]
[1757681105165,0.06,238.52,238.51,53.18612981]
[1757681105366,0.06,238.52,238.51,20.76612981]
[1757681105667,0.06,238.52,238.51,51.41]
[1757681106260,0.06,238.52,238.51,52.08]
[1757681106959,0.06,238.52,238.51,53.75612982]
[1757681107359,0.06,238.54,238.53,18.93]
[1757681107658,0.06,238.54,238.53,51.25]
[1757681107845,0.06,238.54,238.53,51.92]
[1757681108859,0.06,238.54,238.53,18.93]
[1757681109047,0.06,238.54,238.53,51.25]
[1757681109242,0.06,238.54,238.53,51.92]
[1757681110147,0.06,238.54,238.53,18.93]
[1757681110344,0.06,238.54,238.53,51.25]
[1757681110748,0.24,238.54,238.53,51.25]
[1757681111157,0.24,238.54,238.53,51.15]
[1757681111558,0.06,238.54,238.53,51.15]
[1757681112566,0.24,238.54,238.53,51.15]
[1757681113364,0.06,238.54,238.53,51.15]
[1757681115167,0.06,238.54,238.53,51.82]
[1757681115356,0.06,238.54,238.53,53.49605958]
[1757681116560,0.06,238.54,238.53,52.82605958]
[1757681116759,0.06,238.54,238.53,51.15]
[1757681117947,0.06,238.54,238.53,51.82]
[1757681118145,0.06,238.54,238.53,51.13]
[1757681122153,0.06,238.54,238.53,51.8]
[1757681122882,0.06,238.54,238.53,51.13]
[1757681124050,0.06,238.54,238.53,18.83]
[1757681124254,0.24,238.54,238.53,51.13]
[1757681124457,0.06,238.54,238.53,51.13]
[1757681124657,0.06,238.54,238.53,32.3]
[1757681127378,0.06,238.54,238.53,32.98]
[1757681129572,0.06,238.54,238.53,34.65605958]
[1757681132573,0.06,238.54,238.53,34.68605958]
[1757681134259,0.06,238.54,238.53,1.70605958]
[1757681134470,0.06,238.54,238.53,60.00605958]
[1757681134887,0.06,238.54,238.53,60.68605958]
[1757681135572,0.06,238.54,238.53,58.33]
[1757681136090,0.06,238.54,238.53,60.68605958]
[1757681138474,0.06,238.54,238.53,34.68605958]
[1757681143875,0.18,238.63,238.56,26.0]
[1757681144173,0.14216157,238.61,238.57,32.3]
[1757681144372,0.18,238.6,238.58,32.3]
[1757681144691,0.14216157,238.61,238.53,27.70605958]
[1757681144888,3.58244404,238.61,238.54,32.3]
[1757681145087,0.14216157,238.59,238.54,32.3]
[1757681145297,0.18,238.58,238.54,32.3]
[1757681145471,0.18,238.57,238.54,32.3]
[1757681147285,13.73775558,238.59,238.54,32.3]
[1757681147591,13.91775558,238.59,238.54,32.3]
[1757681148487,0.14216157,238.6,238.54,32.3]
[1757681151493,0.14216157,238.58,238.55,32.28]
[1757681152683,0.14216157,238.58,238.55,32.96]
[1757681153088,13.59559401,238.62,238.56,0.68]
[1757681153274,0.14216157,238.62,238.56,0.68]
[1757681153676,13.83559401,238.64,238.56,0.68]
[1757681153990,0.14216157,238.63,238.56,0.68]
[1757681154191,0.14216157,238.63,238.55,32.28]
[1757681155896,0.14216157,238.61,238.55,32.28]
[1757681158386,0.14216157,238.62,238.55,32.28]
[1757681158588,0.14216157,238.62,238.56,0.67]
[1757681159085,0.14216157,238.62,238.54,26.03]
[1757681159283,0.14216157,238.62,238.55,32.28]
[1757681161201,4.51304524,238.62,238.55,32.28]
[1757681161396,0.14216157,238.6,238.56,32.28]
[1757681161598,0.14216157,238.6,238.56,32.95]
[1757681161914,0.14216157,238.58,238.56,32.95]
[1757681162203,16.40829676,238.57,238.56,32.95]
[1757681162603,16.40829676,238.57,238.56,32.28]
[1757681163306,16.40829676,238.57,238.56,32.95]
[1757681163704,16.40829676,238.57,238.56,32.28]
[1757681164089,13.59559401,238.56,238.54,0.03]
[1757681164404,18.75250895,238.55,238.54,0.03]
[1757681164608,18.75250895,238.55,238.54,21.39]
[1757681166400,16.40829676,238.55,238.54,22.06]
[1757681167598,13.59559401,238.55,238.54,22.06]
[1757681169306,0.14216157,238.58,238.54,22.06]
[1757681169508,13.59559401,238.56,238.55,0.67]
[1757681170012,2.81141058,238.56,238.55,0.67]
[1757681171090,2.81141058,238.58,238.55,0.67]
[1757681171313,13.59559401,238.56,238.55,0.67]
[1757681171507,16.40700459,238.56,238.55,0.67]
[1757681171717,2.81141058,238.56,238.55,0.67]
[1757681172213,2.81141058,238.56,238.55,32.95]
[1757681172997,16.40700459,238.56,238.55,32.95]
[1757681173503,16.40700459,238.56,238.55,32.28]
[1757681173705,16.40700459,238.56,238.55,32.95]
[1757681174213,13.59559401,238.56,238.55,32.95]
[1757681176124,13.59559401,238.57,238.55,32.95]
[1757681176309,13.59559401,238.57,238.56,0.67]
[1757681176620,0.14216157,238.61,238.56,0.67]
[1757681176820,13.59559401,238.59,238.56,0.67]
[1757681177024,13.59559401,238.57,238.55,32.28]
[1757681177527,13.59559401,238.59,238.56,0.67]
[1757681177692,13.59559401,238.57,238.55,32.28]
[1757681178120,0.14216157,238.58,238.54,0.03]
[1757681178296,0.14216157,238.56,238.54,27.33]
[1757681178497,16.409078,238.55,238.54,27.33]
[1757681178699,13.59559401,238.55,238.54,27.33]
[1757681179104,13.59559401,238.55,238.54,28.0]
[1757681180731,13.59559401,238.55,238.54,0.7]
[1757681181104,13.59559401,238.55,238.54,27.97]
[1757681182034,16.40945426,238.55,238.54,27.97]
[1757681184232,16.40945426,238.55,238.54,32.31]
[1757681187319,16.40945426,238.55,238.54,33.01]
[1757681187631,16.40945426,238.55,238.54,32.31]
[1757681190232,16.40945426,238.55,238.54,33.01]
[1757681195441,13.59559401,238.55,238.54,33.01]
[1757681197710,2.81791622,238.59,238.54,33.01]
[1757681197923,16.41351023,238.58,238.55,0.7]
[1757681198126,2.81791622,238.57,238.55,0.7]
[1757681198437,13.59559401,238.62,238.55,0.7]
[1757681198644,13.59559401,238.6,238.55,0.7]
[1757681198818,13.59559401,238.58,238.55,0.7]
[1757681199017,2.81789361,238.57,238.55,0.7]
[1757681199339,13.73775558,238.62,238.55,0.7]
[1757681199548,13.73775558,238.6,238.55,0.7]
[1757681199741,13.59559401,238.58,238.55,0.7]
[1757681199944,2.81798945,238.57,238.55,0.7]
[1757681200153,0.14216157,238.6,238.55,0.7]
[1757681200358,13.59559401,238.58,238.55,0.7]
[1757681200554,2.81816956,238.57,238.55,0.7]
[1757681200737,0.14216157,238.6,238.55,0.7]
[1757681200937,13.59559401,238.58,238.56,0.7]
[1757681201142,2.81816956,238.57,238.56,0.7]
[1757681201351,2.81816956,238.57,238.54,33.01]
[1757681201525,0.14216157,238.6,238.55,0.7]
[1757681201726,13.59559401,238.58,238.56,0.7]
[1757681201926,2.81819214,238.57,238.56,0.7]
[1757681203355,13.59559401,238.56,238.54,0.03]
[1757681203531,13.59559401,238.56,238.55,32.26]
[1757681203740,16.41373532,238.56,238.55,32.26]
[1757681204129,16.41373532,238.56,238.55,32.96]
[1757681206051,0.14216157,238.61,238.55,32.96]
[1757681206256,13.73775558,238.59,238.56,0.7]
[1757681206442,13.59559401,238.57,238.55,32.26]
[1757681207044,0.14216157,238.59,238.56,0.7]
[1757681207243,13.59559401,238.57,238.55,32.26]
[1757681207846,0.14216157,238.59,238.56,0.7]
[1757681208055,13.59559401,238.57,238.55,32.26]
[1757681208256,13.59559401,238.57,238.56,0.7]
[1757681208456,16.41173767,238.57,238.56,0.7]
[1757681209765,16.41173767,238.57,238.56,32.96]
[1757681211776,2.81614366,238.57,238.56,32.96]
[1757681211951,2.81614366,238.61,238.56,32.96]
[1757681212281,13.59559401,238.59,238.57,0.7]
[1757681212446,0.14216157,238.62,238.57,0.7]
[1757681212767,13.59559401,238.6,238.57,0.7]
[1757681213067,0.20216157,238.64,238.57,0.7]
[1757681213252,13.73775558,238.62,238.57,0.7]
[1757681213452,13.59559401,238.6,238.57,0.7]
[1757681213845,0.14216157,238.62,238.57,0.7]
[1757681214042,13.59559401,238.6,238.57,0.7]
[1757681215267,0.14216157,238.63,238.58,0.68]
[1757681215451,2.81710023,238.62,238.58,0.68]
[1757681215650,13.59559401,238.6,238.59,0.68]
[1757681215851,16.41269424,238.6,238.59,0.68]
[1757681217154,2.81710023,238.62,238.59,0.68]
[1757681217355,13.59559401,238.6,238.59,0.68]
[1757681217557,2.81710023,238.61,238.59,0.68]
[1757681217558,0.06,238.64,238.59,0.68]
[1757681217751,2.81674598,238.63,238.59,0.68]
[1757681217957,13.59559401,238.61,238.6,0.68]
[1757681218180,16.41233999,238.61,238.6,0.68]
[1757681218477,13.59559401,238.61,238.6,0.68]
[1757681218966,16.41233999,238.61,238.6,0.68]
[1757681219167,13.59559401,238.62,238.6,0.68]
[1757681219360,0.06,238.64,238.61,32.26]
[1757681219549,13.59559401,238.62,238.61,32.26]
[1757681220264,0.06,238.64,238.61,32.26]
[1757681220573,13.59559401,238.62,238.61,32.26]
[1757681220956,2.81556531,238.62,238.61,32.26]
[1757681221162,16.41115932,238.62,238.61,32.26]
[1757681222272,0.14216157,238.61,238.59,20.1]
[1757681222474,18.10887041,238.6,238.59,20.1]
[1757681222781,0.14216157,238.59,238.55,20.13]
[1757681222962,15.79764463,238.56,238.55,20.13]
[1757681223360,16.41115932,238.56,238.55,20.13]
[1757681223670,13.59559401,238.56,238.55,20.13]
[1757681223871,16.41115932,238.56,238.55,20.13]
[1757681224069,13.59559401,238.56,238.55,20.13]
[1757681224388,16.41115932,238.56,238.55,20.13]
[1757681224564,13.59559401,238.56,238.55,20.13]
[1757681224756,16.41115932,238.56,238.55,20.13]
[1757681224958,13.59559401,238.56,238.55,20.13]
[1757681225187,16.41115932,238.56,238.55,20.13]
[1757681225360,13.59559401,238.56,238.55,20.13]
[1757681225878,16.41115932,238.56,238.55,20.13]
[1757681226078,13.59559401,238.56,238.55,20.81]
[1757681226455,16.41115932,238.56,238.55,20.13]
[1757681226678,13.59559401,238.56,238.55,20.13]
[1757681227061,16.41115932,238.56,238.55,20.13]
[1757681227379,13.59559401,238.56,238.55,20.13]
[1757681227572,13.59559401,238.56,238.55,20.81]
[1757681227774,16.41115932,238.56,238.55,20.81]
[1757681227974,13.59559401,238.56,238.55,20.81]
[1757681228375,16.41115932,238.56,238.55,20.81]
[1757681228558,13.59559401,238.56,238.55,20.81]
[1757681229076,13.59559401,238.56,238.55,20.13]
[1757681232083,13.59559401,238.56,238.55,20.81]
[1757681232284,2.81553844,238.59,238.55,20.81]
[1757681232460,13.59559401,238.58,238.56,32.94]
[1757681232665,13.73775558,238.61,238.57,0.68]
[1757681232892,13.59559401,238.59,238.58,32.26]
[1757681233072,13.59559401,238.59,238.58,32.94]
[1757681233277,13.59559401,238.61,238.58,32.94]
[1757681233586,13.59559401,238.59,238.58,32.26]
[1757681233788,0.20216157,238.64,238.58,32.26]
[1757681233789,13.59559401,238.62,238.58,52.36]
[1757681233988,2.81654936,238.61,238.58,52.36]
[1757681234191,16.41214337,238.6,238.59,0.68]
[1757681234371,13.59559401,238.6,238.59,0.68]
[1757681234568,13.59559401,238.61,238.59,0.68]
[1757681234780,13.59559401,238.61,238.6,32.24]
[1757681234976,16.41191775,238.61,238.59,0.68]
[1757681235177,13.59559401,238.59,238.58,20.1]
[1757681235380,13.59559401,238.59,238.58,52.34]
[1757681235575,13.59559401,238.6,238.58,52.34]
[1757681235782,16.41191775,238.6,238.58,52.34]
[1757681236093,0.14216157,238.61,238.58,52.34]
[1757681236266,2.81632374,238.6,238.58,52.34]
[1757681236471,13.59559401,238.59,238.58,52.34]
[1757681237270,0.20216157,238.64,238.58,52.34]
[1757681237465,2.81669507,238.63,238.58,52.34]
[1757681237670,13.59559401,238.61,238.58,52.34]
[1757681237984,13.59559401,238.62,238.58,52.34]
[1757681238173,16.41228908,238.62,238.58,52.34]
[1757681238369,13.59559401,238.62,238.58,52.34]
[1757681238595,16.41228908,238.62,238.58,52.34]
[1757681238777,13.59559401,238.62,238.58,52.34]
[1757681238976,16.41228908,238.62,238.58,52.34]
[1757681239177,13.59559401,238.62,238.58,52.34]
[1757681239476,16.41228908,238.62,238.58,52.34]
[1757681239672,13.59559401,238.62,238.58,52.34]
[1757681239894,16.41228908,238.62,238.58,52.34]
[1757681240099,13.59559401,238.62,238.58,52.34]
[1757681240280,16.41228908,238.62,238.58,52.34]
[1757681240484,13.59559401,238.62,238.58,52.34]
[1757681240716,16.41228908,238.62,238.58,52.34]
[1757681240895,2.81669507,238.63,238.59,0.68]
[1757681241088,13.65559401,238.64,238.6,32.24]
[1757681241288,16.47263231,238.64,238.61,0.68]
[1757681241484,0.06,238.64,238.62,32.24]
[1757681241699,0.06,238.64,238.63,0.68]
[1757681247583,0.06,238.64,238.63,20.78]
[1757681248407,0.06,238.67,238.63,20.78]
[1757681248704,0.06,238.67,238.64,32.95]
[1757681249306,0.06,238.67,238.65,0.71]
[1757681249487,0.06,238.67,238.66,32.24]
[1757681249907,0.06,238.67,238.66,32.95]
[1757681250090,0.06,238.67,238.66,0.71]
[1757681250407,0.06,238.67,238.66,32.95]
[1757681253607,0.06,238.67,238.66,53.05]
[1757681255003,0.06,238.67,238.66,79.05]
[1757681259618,0.1,238.69,238.68,20.04]
[1757681259793,0.1,238.69,238.68,52.26]
[1757681259995,0.1,238.69,238.68,52.97]
[1757681262922,0.1,238.69,238.68,52.26]
[1757681263235,0.1,238.69,238.68,52.97]
[1757681264014,0.1,238.69,238.68,20.04]
[1757681264212,0.1,238.69,238.68,52.26]
[1757681264415,0.1,238.69,238.68,52.97]
[1757681264995,0.16,238.69,238.68,52.97]
[1757681278522,0.16,238.69,238.68,20.75]
[1757681278731,0.16,238.69,238.68,52.95]
[1757681279032,0.16,238.69,238.68,52.24]
[1757681279207,0.16,238.69,238.68,52.94]
[1757681280321,0.16,238.69,238.68,20.74]
[1757681280514,0.16,238.69,238.68,52.94]
[1757681281842,0.16,238.69,238.68,20.74]
[1757681282136,0.16,238.69,238.68,20.04]
[1757681282442,0.16,238.69,238.68,52.24]
[1757681282614,0.16,238.69,238.68,20.04]
[1757681282815,0.16,238.69,238.68,52.24]
[1757681285922,0.16,238.69,238.68,52.94]
[1757681286841,0.16,238.69,238.68,52.24]
[1757681289324,0.16,238.69,238.68,52.94]
[1757681290247,0.16,238.69,238.68,52.24]
[1757681290851,0.16,238.69,238.68,52.94]
[1757681294026,0.16,238.69,238.68,52.24]
[1757681294433,0.16,238.69,238.68,20.04]
[1757681294638,14.80188771,238.69,238.68,20.04]
[1757681294839,14.80188771,238.69,238.68,52.24]
[1757681295628,13.75559401,238.69,238.68,52.24]
[1757681296655,13.75559401,238.69,238.68,52.94]
[1757681297152,0.16,238.69,238.68,52.94]
[1757681302348,0.16,238.69,238.68,78.94]
[1757681306573,0.24,238.78,238.69,45.88]
[1757681306780,13.59559401,238.76,238.7,32.92]
[1757681306949,1.04611615,238.75,238.71,0.72]
[1757681307150,1.04611615,238.74,238.72,32.2]
[1757681307467,13.59559401,238.76,238.72,32.92]
[1757681307672,1.04611549,238.75,238.72,32.92]
[1757681307856,1.04611549,238.74,238.72,32.92]
[1757681308057,13.59559401,238.76,238.72,32.92]
[1757681308281,1.04611561,238.75,238.73,0.72]
[1757681308568,1.04611561,238.74,238.73,0.72]
[1757681308765,1.04611561,238.74,238.73,32.92]
[1757681309177,0.1,238.79,238.73,32.92]
[1757681309363,13.59559401,238.77,238.74,0.72]
[1757681309569,3.86565153,238.76,238.75,32.92]
[1757681310174,1.04608632,238.76,238.75,32.92]
[1757681311277,0.1,238.79,238.75,32.92]
[1757681311459,1.04598497,238.78,238.76,0.72]
[1757681311662,1.04598497,238.77,238.76,0.72]
[1757681311971,1.04598497,238.77,238.76,32.9]
[1757681312279,0.1,238.79,238.76,32.9]
[1757681312457,1.04598397,238.78,238.76,32.9]
[1757681312651,0.1,238.79,238.76,32.18]
[1757681312877,14.64157804,238.78,238.77,32.18]
[1757681313176,1.04598403,238.78,238.77,32.18]
[1757681314074,13.69559401,238.79,238.77,32.9]
[1757681314283,0.1,238.79,238.77,32.9]
[1757681315263,0.1,238.79,238.77,32.18]
[1757681315464,0.1,238.79,238.78,0.72]
[1757681315789,0.1,238.79,238.77,32.18]
[1757681316179,0.1,238.79,238.75,2.39458607]
[1757681316180,0.1,238.79,238.78,32.18]
[1757681316359,14.74154193,238.79,238.78,32.18]
[1757681316678,13.69559401,238.79,238.78,32.18]
[1757681317480,14.74152721,238.79,238.78,32.18]
[1757681317868,14.74152721,238.79,238.78,32.9]
[1757681317869,13.69559401,238.79,238.78,32.9]
[1757681318176,13.69559401,238.79,238.78,32.18]
[1757681318779,0.1,238.79,238.78,32.18]
[1757681318966,0.1,238.79,238.78,32.9]
[1757681320176,0.1,238.79,238.78,52.68]
[1757681320362,0.1,238.79,238.78,51.96]
[1757681320881,0.1,238.79,238.78,52.68]
[1757681321660,0.16,238.79,238.78,20.5]
[1757681321968,0.16,238.79,238.78,52.68]
[1757681322564,0.16,238.79,238.78,20.5]
[1757681322966,0.16,238.79,238.78,52.68]
[1757681324567,0.16,238.79,238.78,65.23729264]
[1757681328880,0.16,238.79,238.78,33.05729264]
[1757681329193,0.16,238.79,238.78,65.23729264]
[1757681330694,0.16,238.79,238.78,45.45729264]
[1757681331269,0.16,238.79,238.78,13.27729264]
[1757681331486,0.16,238.79,238.78,45.43729264]
[1757681332774,0.16,238.79,238.78,13.27729264]
[1757681332993,0.16,238.79,238.78,45.43729264]
[1757681334996,0.16,238.79,238.78,13.27729264]
[1757681335195,0.16,238.79,238.78,45.43729264]
[1757681336177,0.16,238.79,238.78,13.27729264]
[1757681336379,0.16,238.79,238.78,44.71729264]
[1757681336675,0.16,238.79,238.78,45.36729264]
[1757681337577,0.24,238.86,238.79,19.84]
[1757681337777,0.24,238.86,238.8,32.16]
[1757681337991,0.24,238.86,238.8,32.81]
[1757681338390,0.24,238.86,238.8,45.3662415]
[1757681338992,0.24,238.88,238.8,32.16]
[1757681339200,0.24,238.88,238.81,0.65]
[1757681339503,13.59559401,238.86,238.81,12.20624149]
[1757681339801,13.59559401,238.85,238.81,12.20624149]
[1757681340203,0.71,238.85,238.81,12.20624149]
[1757681340798,0.1,238.89,238.82,32.16]
[1757681340981,0.71,238.84,238.82,32.16]
[1757681341178,0.77,238.86,238.82,32.16]
[1757681341414,0.06,238.86,238.83,0.65]
[1757681341698,0.06,238.86,238.84,32.16]
[1757681341899,0.06,238.86,238.84,51.8]
[1757681342202,0.06,238.86,238.85,0.65]
[1757681342417,0.06,238.86,238.85,20.29]
[1757681342785,0.06,238.86,238.85,32.84361439]
[1757681344394,0.06,238.86,238.85,65.00361439]
[1757681344719,0.06,238.86,238.85,52.45]
[1757681345597,0.06,238.86,238.85,20.29]
[1757681345913,0.06,238.86,238.85,51.8]
[1757681346103,0.06,238.86,238.85,21.96381525]
[1757681346305,0.06,238.86,238.85,54.12381525]
[1757681348206,0.06,238.86,238.85,21.96381525]
[1757681348403,0.06,238.86,238.85,51.8]
[1757681348592,0.77,238.86,238.85,51.8]
[1757681348795,0.77,238.86,238.85,19.64]
[1757681348988,0.06,238.86,238.85,19.64]
[1757681349191,0.06,238.86,238.85,51.8]
[1757681350389,0.06,238.86,238.85,52.45]
[1757681351995,0.06,238.86,238.85,54.12374521]
[1757681353325,0.1,238.89,238.88,26.0]
[1757681353505,0.1,238.89,238.88,77.78]
[1757681353698,0.1,238.99,238.88,78.43]
[1757681354003,0.1,238.99,238.89,0.65]
[1757681354203,0.1,238.99,238.93,26.0]
[1757681354410,0.1,238.99,238.94,32.14]
[1757681354597,0.1,238.99,238.94,45.33836348]
[1757681354931,0.1,238.99,238.95,0.65]
[1757681355107,0.1,238.99,238.94,44.68836348]
[1757681355108,0.1,238.99,238.96,32.79]
[1757681355624,0.1,238.99,238.96,32.14]
[1757681355820,0.1,238.99,238.96,32.79]
[1757681355998,0.1,238.99,238.96,32.14]
[1757681356195,0.1,238.99,238.96,44.68783863]
[1757681356528,0.81,238.99,238.96,44.68783863]
[1757681357618,0.81,238.99,238.96,45.33783863]
[1757681357619,0.1,238.99,238.96,45.33783863]
[1757681358007,0.1,238.99,238.96,44.68783863]
[1757681359424,0.1,238.99,238.96,45.33783863]
[1757681360137,0.81,238.99,238.96,44.68783863]
[1757681360422,0.71,238.98,238.96,32.14]
[1757681361218,0.1,238.99,238.96,32.14]
[1757681361517,0.1,238.99,238.96,32.79]
[1757681362805,0.1,238.99,238.97,0.65]
[1757681363405,0.1,238.99,238.97,20.29]
[1757681363714,0.1,238.99,238.98,32.14]
[1757681363922,0.1,238.99,238.98,51.78]
[1757681364528,0.1,238.99,238.98,52.43]
[1757681365412,0.1,238.99,238.98,64.97731383]
[1757681373924,0.1,238.99,238.98,64.32731383]
[1757681375339,0.68,239.02,238.99,19.54]
[1757681375541,0.68,239.02,239.0,32.12]
[1757681375861,2.89554393,239.09,239.03,26.0]
[1757681376138,0.1,239.09,239.07,26.0]
[1757681376340,0.1,239.09,239.08,33.21]
[1757681376728,0.1,239.09,239.08,34.88192627]
[1757681377256,14.37559401,239.09,239.08,1.67192627]
[1757681377546,14.37559401,239.09,239.05,32.54]
[1757681377547,0.78,239.09,239.05,32.54]
[1757681377720,0.68,239.08,239.05,32.54]
[1757681377915,0.68,239.07,239.06,32.66]
[1757681380463,13.59559401,239.08,239.06,32.66]
[1757681381037,0.16,239.09,239.06,32.66]
[1757681381238,0.68,239.08,239.06,52.2]
[1757681381438,0.16,239.09,239.08,26.0]
[1757681381633,0.16,239.09,239.08,58.64]
[1757681381833,0.16,239.09,239.08,62.10320777]
[1757681385456,0.16,239.09,239.08,81.64320777]
[1757681386641,0.68,239.18,239.11,19.38]
[1757681386869,0.68,239.18,239.12,33.06]
[1757681388070,0.68,239.18,239.12,34.73185639]
[1757681388845,0.68,239.18,239.12,35.40185639]